fUST/lending_fUST_20250817
["ID","MTS","AMOUNT","RATE_DAILY","PERIOD"]
[379873338,1755429034390,-480.0,0.00019623,2]
[379873339,1755429034399,-480.0,0.00019623,2]
[379873340,1755429034408,-480.0,0.00019623,2]
[379873341,1755429034418,-1474.02,0.00019623,2]
[379873342,1755429034427,-460.0,0.00019623,2]
[379873343,1755429034436,-480.0,0.00019623,2]
[379873344,1755429034445,-480.0,0.00019623,2]
[379873345,1755429034455,-480.0,0.00019623,2]
[379873346,1755429034465,-466.26467954,0.00019623,2]
[379873347,1755429034474,-453.87104676,0.00019623,2]
[379873348,1755429034484,-480.0,0.00019623,2]
[379873349,1755429034493,-459.8299533,0.00019623,2]
[379873350,1755429034502,-480.0,0.00019623,2]
[379873351,1755429034511,-480.0,0.00019623,2]
[379873352,1755429034520,-480.0,0.00019623,2]
[379873353,1755429034530,-480.0,0.00019623,2]
[379873354,1755429034539,-480.0,0.00019623,2]
[379873355,1755429034549,-500.0,0.00019623,2]
[379873356,1755429034558,-206.77673496,0.00019623,2]
[379873357,1755429034568,-480.0,0.00019624,2]
[379873358,1755429034578,-464.10991116,0.00019624,2]
[379873359,1755429034588,-480.0,0.00019624,2]
[379873360,1755429034597,-480.0,0.00019624,2]
[379873361,1755429034606,-480.0,0.00019624,2]
[379873362,1755429034615,-819.59,0.00019624,2]
[379873363,1755429034625,-480.0,0.00019624,2]
[379873364,1755429034634,-480.0,0.00019624,2]
[379873365,1755429034644,-480.0,0.00019624,2]
[379873366,1755429034657,-796.51,0.00019624,2]
[379873367,1755429034666,-480.0,0.00019624,2]
[379873368,1755429034676,-480.0,0.00019624,2]
[379873369,1755429034686,-480.0,0.00019624,2]
[379873370,1755429034697,-480.0,0.00019624,2]
[379873371,1755429034706,-480.0,0.00019624,2]
[379873372,1755429034716,-480.0,0.00019624,2]
[379873373,1755429034725,-480.0,0.00019624,2]
[379873374,1755429034735,-480.0,0.00019624,2]
[379873375,1755429034745,-480.0,0.00019624,2]
[379873376,1755429034756,-480.0,0.00019624,2]
[379873377,1755429034765,-480.0,0.00019624,2]
[379873378,1755429034774,-480.0,0.00019624,2]
[379873379,1755429034783,-480.0,0.00019624,2]
[379873380,1755429034793,-480.0,0.00019624,2]
[379873381,1755429034802,-480.0,0.00019624,2]
[379873382,1755429034812,-480.0,0.00019624,2]
[379873383,1755429034822,-460.16366298,0.00019624,2]
[379873384,1755429034831,-480.0,0.00019624,2]
[379873385,1755429034841,-466.18393589,0.00019624,2]
[379873386,1755429034851,-480.0,0.00019624,2]
[379873387,1755429034861,-480.0,0.00019624,2]
[379873388,1755429034871,-520.77,0.00019624,2]
[379873389,1755429034880,-480.0,0.00019624,2]
[379873390,1755429034890,-480.0,0.00019624,2]
[379873391,1755429034899,-480.0,0.00019624,2]
[379873392,1755429034909,-480.0,0.00019624,2]
[379873393,1755429034918,-480.0,0.00019624,2]
[379873394,1755429034928,-1140.62,0.00019624,2]
[379873395,1755429034938,-480.90647927,0.00019624,2]
[379873396,1755429034948,-480.0,0.00019624,2]
[379873397,1755429034958,-460.4821898,0.00019624,2]
[379873398,1755429034968,-480.0,0.00019624,2]
[379873399,1755429035089,-598.63,0.00019624,2]
[379873400,1755429035099,-480.0,0.00019624,2]
[379873401,1755429035109,-480.0,0.00019624,2]
[379873402,1755429035118,-480.0,0.00019624,2]
[379873403,1755429035127,-480.0,0.00019624,2]
[379873404,1755429035137,-480.0,0.00019624,2]
[379873405,1755429035146,-622.04,0.00019624,2]
[379873406,1755429035156,-480.0,0.00019624,2]
[379873407,1755429035165,-480.0,0.00019624,2]
[379873408,1755429035175,-480.0,0.00019624,2]
[379873409,1755429035185,-498.47,0.00019624,2]
[379873410,1755429035194,-480.0,0.00019624,2]
[379873411,1755429035203,-480.0,0.00019624,2]
[379873412,1755429035212,-480.0,0.00019624,2]
[379873413,1755429035221,-480.47949594,0.00019624,2]
[379873414,1755429035230,-480.0,0.00019624,2]
[379873415,1755429035239,-480.0,0.00019624,2]
[379873416,1755429035248,-500.0,0.00019624,2]
[379873417,1755429035258,-500.0,0.00019624,2]
[379873418,1755429035266,-480.0,0.00019624,2]
[379873419,1755429035275,-480.0,0.00019624,2]
[379873420,1755429035284,-480.0,0.00019624,2]
[379873421,1755429035294,-480.0,0.00019624,2]
[379873422,1755429035303,-480.0,0.00019624,2]
[379873423,1755429035312,-480.0,0.00019624,2]
[379873424,1755429035322,-480.0,0.00019624,2]
[379873425,1755429035331,-460.0,0.00019624,2]
[379873426,1755429035340,-480.0,0.00019624,2]
[379873427,1755429035351,-480.0,0.00019624,2]
[379873428,1755429035360,-480.0,0.00019624,2]
[379873429,1755429035369,-480.0,0.00019624,2]
[379873430,1755429035379,-500.0,0.00019625,2]
[379873431,1755429035389,-500.0,0.00019625,2]
[379873432,1755429035398,-500.0,0.00019625,2]
[379873433,1755429035408,-500.0,0.00019625,2]
[379873434,1755429035418,-500.0,0.00019625,2]
[379873435,1755429035428,-500.0,0.00019625,2]
[379873436,1755429035437,-500.0,0.00019625,2]
[379873437,1755429035447,-500.0,0.00019625,2]
[379873438,1755429035457,-500.0,0.00019625,2]
[379873439,1755429035466,-500.0,0.00019625,2]
[379873440,1755429035475,-189.82627348,0.00019626,2]
[379873441,1755429035485,-466.99224572,0.00019626,2]
[379873442,1755429035494,-840.5860423,0.00019626,2]
[379873443,1755429035503,-1494.37518631,0.00019626,2]
[379873444,1755429035513,-2334.96122862,0.00019626,2]
[379873445,1755429035522,-3362.34416921,0.00019626,2]
[379873446,1755429035531,-4576.52400809,0.00019626,2]
[379873447,1755429035541,-5977.50074526,0.00019626,2]
[379873448,1755429035551,-7565.27438071,0.00019626,2]
[379873449,1755429035560,-9339.84491446,0.00019626,2]
[379873450,1755429035569,-11289.91113415,0.00019626,2]
[379873451,1755429035578,-293.15432494,0.00019626,2]
[379873452,1755429035587,-2819.41782958,0.00019626,2]
[379873453,1755429035596,-6337.34642644,0.00019626,2]
[379873454,1755429035606,-480.0,0.00019626,2]
[379873455,1755429035615,-440.68403278,0.00019626,2]
[379873456,1755429035625,-460.2436315,0.00019626,2]
[379873457,1755429035634,-480.0,0.00019626,2]
[379873458,1755429035645,-480.0,0.00019626,2]
[379873459,1755429035657,-521.93090397,0.00019626,2]
[379873460,1755429035667,-480.0,0.00019626,2]
[379873461,1755429035676,-480.0,0.00019626,2]
[379873462,1755429035687,-480.0,0.00019626,2]
[379873463,1755429035696,-480.0,0.00019626,2]
[379873464,1755429035705,-480.0,0.00019626,2]
[379873465,1755429035714,-480.0,0.00019626,2]
[379873466,1755429035723,-402.04261588,0.00019626,2]
[379873467,1755429035734,-480.0,0.00019626,2]
[379873468,1755429035744,-480.0,0.00019626,2]
[379873469,1755429035754,-298.14605445,0.00019626,2]
[379873470,1755429035763,-460.0,0.00019626,2]
[379873471,1755429035773,-480.0,0.00019626,2]
[379873472,1755429035782,-460.24108421,0.00019626,2]
[379873473,1755429035791,-480.0,0.00019626,2]
[379873474,1755429035801,-480.0,0.00019626,2]
[379873475,1755429035811,-480.0,0.00019626,2]
[379873476,1755429035820,-135.67498293,0.00019626,2]
[379873477,1755429036010,-377.28710013,0.00019626,2]
[379873478,1755429036020,-394.81179335,0.00019626,2]
[379873479,1755429036052,-475.06006,0.00019622,2]
[379873480,1755429036063,-4.93994,0.00019622,2]
[379873481,1755429036072,-85.18820665,0.00019626,2]
[379873482,1755429036081,-480.0,0.00019626,2]
[379873483,1755429036090,-480.0,0.00019626,2]
[379873484,1755429036099,-480.0,0.00019626,2]
[379873485,1755429036108,-460.0,0.00019626,2]
[379873486,1755429036118,-522.52579997,0.00019626,2]
[379873487,1755429036127,-480.0,0.00019626,2]
[379873488,1755429036137,-480.0,0.00019626,2]
[379873489,1755429036146,-460.0,0.00019626,2]
[379873490,1755429036155,-480.0,0.00019626,2]
[379873491,1755429036165,-480.0,0.00019626,2]
[379873492,1755429036175,-480.0,0.00019626,2]
[379873493,1755429036184,-480.0,0.00019626,2]
[379873494,1755429036193,-480.0,0.00019626,2]
[379873495,1755429036204,-462.89245258,0.00019626,2]
[379873496,1755429036213,-480.0,0.00019626,2]
[379873497,1755429036223,-468.21008992,0.00019626,2]
[379873498,1755429036234,-480.0,0.00019626,2]
[379873499,1755429036243,-232.48055456,0.00019626,2]
[379873500,1755429036254,-227.51944544,0.00019626,2]
[379873501,1755429036264,-460.0,0.00019626,2]
[379873502,1755429036275,-480.0,0.00019626,2]
[379873503,1755429036284,-480.0,0.00019626,2]
[379873504,1755429036294,-480.0,0.00019626,2]
[379873505,1755429036304,-988.27088415,0.00019626,2]
[379873506,1755429036315,-3949.13045306,0.00019626,2]
[379873507,1755429036326,-480.0,0.00019626,2]
[379873508,1755429036336,-165.11180392,0.00019626,2]
[379873509,1755429036345,-480.0,0.00019626,2]
[379873510,1755429036354,-480.0,0.00019626,2]
[379873511,1755429036364,-480.0,0.00019626,2]
[379873512,1755429036394,-480.0,0.00019626,2]
[379873513,1755429036404,-480.0,0.00019626,2]
[379873514,1755429036416,-480.0,0.00019626,2]
[379873515,1755429036426,-460.0,0.00019626,2]
[379873516,1755429036444,-480.0,0.00019626,2]
[379873517,1755429036471,-480.0,0.00019626,2]
[379873518,1755429036482,-460.52308998,0.00019626,2]
[379873519,1755429036492,-480.0,0.00019626,2]
[379873520,1755429036502,-480.0,0.00019626,2]
[379873521,1755429036511,-480.0,0.00019626,2]
[379873522,1755429036521,-1000.0,0.00019626,2]
[379873523,1755429036530,-461.45994006,0.00019626,2]
[379873524,1755429036540,-480.0,0.00019626,2]
[379873525,1755429036549,-480.0,0.00019626,2]
[379873526,1755429036558,-480.0,0.00019626,2]
[379873527,1755429036568,-480.0,0.00019626,2]
[379873528,1755429036579,-480.0,0.00019626,2]
[379873529,1755429036589,-500.0,0.00019626,2]
[379873530,1755429036598,-500.0,0.00019626,2]
[379873531,1755429036607,-480.0,0.00019626,2]
[379873532,1755429036616,-480.0,0.00019626,2]
[379873533,1755429036625,-480.0,0.00019626,2]
[379873534,1755429036635,-480.0,0.00019626,2]
[379873535,1755429036645,-480.0,0.00019626,2]
[379873536,1755429036660,-480.0,0.00019626,2]
[379873537,1755429036669,-480.0,0.00019626,2]
[379873538,1755429036678,-480.0,0.00019626,2]
[379873539,1755429036687,-480.0,0.00019626,2]
[379873540,1755429036697,-480.0,0.00019626,2]
[379873541,1755429036706,-480.0,0.00019626,2]
[379873542,1755429036716,-480.35901398,0.00019626,2]
[379873543,1755429036727,-480.0,0.00019626,2]
[379873544,1755429036737,-480.0,0.00019626,2]
[379873545,1755429036746,-480.0,0.00019626,2]
[379873546,1755429036755,-480.0,0.00019626,2]
[379873547,1755429036764,-480.53728413,0.00019626,2]
[379873548,1755429036773,-480.43415588,0.00019626,2]
[379873549,1755429036783,-338.87615458,0.00019626,2]
[379873550,1755429036793,-460.99779674,0.00019626,2]
[379873551,1755429036802,-460.40971989,0.00019626,2]
[379873552,1755429036812,-480.0,0.00019626,2]
[379873553,1755429036822,-480.0,0.00019626,2]
[379873554,1755429036831,-480.0,0.00019626,2]
[379873555,1755429036841,-480.0,0.00019626,2]
[379873556,1755429036850,-480.0,0.00019626,2]
[379873557,1755429036859,-481.1327931,0.00019626,2]
[379873558,1755429036871,-480.0,0.00019626,2]
[379873559,1755429036881,-480.0,0.00019626,2]
[379873560,1755429036891,-480.0,0.00019626,2]
[379873561,1755429036900,-480.0,0.00019626,2]
[379873562,1755429036909,-480.0,0.00019626,2]
[379873563,1755429036919,-480.97423979,0.00019626,2]
[379873564,1755429036928,-480.0,0.00019626,2]
[379873565,1755429036937,-480.85728125,0.00019626,2]
[379873566,1755429036946,-480.0,0.00019626,2]
[379873567,1755429036955,-480.0,0.00019626,2]
[379873568,1755429036965,-480.0,0.00019626,2]
[379873569,1755429036974,-481.24378312,0.00019626,2]
[379873570,1755429036984,-480.0,0.00019626,2]
[379873571,1755429036995,-480.0,0.00019626,2]
[379873572,1755429037015,-460.97323366,0.00019626,2]
[379873573,1755429037033,-200.57349642,0.00019626,2]
[379873574,1755429037046,-481.75664739,0.00019626,2]
[379873575,1755429037066,-480.0,0.00019626,2]
[379873576,1755429037075,-480.30376216,0.00019626,2]
[379873577,1755429037084,-480.0,0.00019626,2]
[379873578,1755429037094,-420.76148878,0.00019626,2]
[379873579,1755429037104,-480.0,0.00019626,2]
[379873580,1755429037113,-480.0,0.00019626,2]
[379873581,1755429037123,-480.0,0.00019626,2]
[379873582,1755429037133,-461.57918253,0.00019626,2]
[379873583,1755429037142,-480.0,0.00019626,2]
[379873584,1755429037151,-480.0,0.00019626,2]
[379873585,1755429037276,-480.0,0.00019626,2]
[379873586,1755429037286,-480.0,0.00019626,2]
[379873587,1755429037296,-480.0,0.00019626,2]
[379873588,1755429037305,-480.0,0.00019626,2]
[379873589,1755429037314,-366.71211783,0.00019626,2]
[379873618,1755429039179,157.0,0.000287,120]
[379873660,1755429040085,-480.0,0.00019613,2]
[379873662,1755429040095,-412.61121635,0.00019621,2]
[379873664,1755429040105,-500.0,0.00019621,2]
[379873666,1755429040114,-500.0,0.00019621,2]
[379873668,1755429040123,-500.0,0.00019621,2]
[379873670,1755429040136,-301.09246144,0.00019621,2]
[379873672,1755429040149,-500.0,0.00019621,2]
[379873674,1755429040158,-500.0,0.00019621,2]
[379873676,1755429040167,-631.01625862,0.00019621,2]
[379873678,1755429040177,-500.0,0.00019621,2]
[379873680,1755429040187,-500.0,0.00019621,2]
[379873682,1755429040196,-500.0,0.00019621,2]
[379873684,1755429040207,-500.0,0.00019621,2]
[379873686,1755429040224,-500.0,0.00019621,2]
[379873688,1755429040233,-500.0,0.00019621,2]
[379873690,1755429040243,-22.40006359,0.00019621,2]
[379873693,1755429040254,-477.59993641,0.00019621,2]
[379873695,1755429040264,-500.0,0.00019621,2]
[379873697,1755429040272,-500.0,0.00019621,2]
[379873699,1755429040281,-500.0,0.00019621,2]
[379873701,1755429040290,-500.0,0.00019621,2]
[379873703,1755429040299,-500.0,0.00019621,2]
[379873704,1755429040309,-500.0,0.00019621,2]
[379873706,1755429040319,-500.0,0.00019621,2]
[379873708,1755429040328,-500.0,0.00019621,2]
[379873710,1755429040337,-500.0,0.00019621,2]
[379873712,1755429040347,-500.0,0.00019621,2]
[379873714,1755429040357,-500.0,0.00019621,2]
[379873716,1755429040365,-421.0233432,0.00019621,2]
[379873718,1755429040375,-500.0,0.00019621,2]
[379873720,1755429040384,-480.0,0.00019622,2]
[379873723,1755429040395,-480.0,0.00019622,2]
[379873725,1755429040404,-480.0,0.00019623,2]
[379873727,1755429040414,-320.99595956,0.00019623,2]
[379873729,1755429040426,-159.00404044,0.00019623,2]
[379873731,1755429040436,-480.0,0.00019624,2]
[379873733,1755429040446,-113.28788217,0.00019626,2]
[379873735,1755429040455,-481.61483589,0.00019626,2]
[379873737,1755429040464,-140.90762159,0.00019626,2]
[379873739,1755429040477,-96.95929271,0.00019626,2]
[379873741,1755429040487,-480.0,0.00019626,2]
[379873743,1755429040496,-173.6120146,0.00019626,2]
[379873745,1755429040506,-480.0,0.00019626,2]
[379873747,1755429040515,-480.0,0.00019626,2]
[379873749,1755429040525,-480.0,0.00019626,2]
[379873751,1755429040534,-480.0,0.00019626,2]
[379873753,1755429040543,-480.35036134,0.00019626,2]
[379873755,1755429040552,-480.0,0.00019626,2]
[379873757,1755429040562,-465.1207413,0.00019626,2]
[379873759,1755429040571,-480.0,0.00019626,2]
[379873761,1755429040581,-480.0,0.00019626,2]
[379873763,1755429040590,-480.0,0.00019626,2]
[379873766,1755429040600,-481.85531563,0.00019626,2]
[379873768,1755429040610,-480.0,0.00019626,2]
[379873770,1755429040620,-480.0,0.00019626,2]
[379873772,1755429040629,-462.24972677,0.00019626,2]
[379873774,1755429040638,-480.0,0.00019626,2]
[379873776,1755429040647,-492.9403279,0.00019626,2]
[379873778,1755429040659,-480.0,0.00019626,2]
[379873780,1755429040668,-480.0,0.00019626,2]
[379873782,1755429040677,-460.35938903,0.00019626,2]
[379873784,1755429040686,-461.33403937,0.00019626,2]
[379873786,1755429040696,-480.0,0.00019626,2]
[379873788,1755429040706,-480.0,0.00019626,2]
[379873790,1755429040716,-461.29922661,0.00019626,2]
[379873792,1755429040725,-480.0,0.00019626,2]
[379873794,1755429040734,-480.0,0.00019626,2]
[379873796,1755429040744,-480.0,0.00019626,2]
[379873798,1755429040754,-344.13184474,0.00019626,2]
[379873800,1755429040766,-655.86815526,0.00019626,2]
[379873802,1755429040776,-481.08917801,0.00019626,2]
[379873804,1755429040785,-481.66945004,0.00019626,2]
[379873806,1755429040795,-349.70321669,0.00019626,2]
[379873808,1755429040806,-130.29678331,0.00019626,2]
[379873810,1755429040817,-389.83298424,0.00019626,2]
[379873824,1755429040937,-65.76895056,0.00019626,2]
[379873826,1755429040948,-480.0,0.00019626,2]
[379873828,1755429040958,-480.0,0.00019626,2]
[379873830,1755429040968,-480.0,0.00019626,2]
[379873832,1755429040978,-480.0,0.00019626,2]
[379873834,1755429040988,-462.53761611,0.00019626,2]
[379873836,1755429040997,-481.77655495,0.00019626,2]
[379873838,1755429041007,-480.0,0.00019626,2]
[379873840,1755429041017,-460.0,0.00019626,2]
[379873842,1755429041027,-480.0,0.00019626,2]
[379873844,1755429041036,-480.0,0.00019626,2]
[379873846,1755429041046,-480.0,0.00019626,2]
[379873848,1755429041056,-480.0,0.00019626,2]
[379873850,1755429041066,-480.0,0.00019626,2]
[379873852,1755429041075,-480.0,0.00019626,2]
[379873854,1755429041085,-480.0,0.00019626,2]
[379873856,1755429041094,-480.38527387,0.00019626,2]
[379873858,1755429041104,-480.0,0.00019626,2]
[379873860,1755429041114,-480.0,0.00019626,2]
[379873862,1755429041124,-480.0,0.00019626,2]
[379873864,1755429041133,-480.0,0.00019626,2]
[379873866,1755429041142,-480.0,0.00019626,2]
[379873868,1755429041152,-480.0,0.00019626,2]
[379873870,1755429041162,-460.49666946,0.00019626,2]
[379873872,1755429041172,-481.77612672,0.00019626,2]
[379873874,1755429041182,-480.0,0.00019626,2]
[379873876,1755429041191,-480.0,0.00019626,2]
[379873878,1755429041202,-480.0,0.00019626,2]
[379873880,1755429041211,-480.0,0.00019626,2]
[379873882,1755429041222,-461.9104117,0.00019626,2]
[379873884,1755429041231,-480.0,0.00019626,2]
[379873887,1755429041241,-480.0,0.00019626,2]
[379873889,1755429041251,-480.0,0.00019626,2]
[379873891,1755429041262,-480.0,0.00019626,2]
[379873893,1755429041272,-480.0,0.00019626,2]
[379873895,1755429041282,-480.0,0.00019626,2]
[379873897,1755429041292,-480.0,0.00019626,2]
[379873899,1755429041303,-500.0,0.00019626,2]
[379873901,1755429041313,-480.0,0.00019626,2]
[379873903,1755429041323,-480.0,0.00019626,2]
[379873905,1755429041333,-480.0,0.00019626,2]
[379873907,1755429041342,-480.0,0.00019626,2]
[379873909,1755429041352,-480.0,0.00019626,2]
[379873911,1755429041362,-480.0,0.00019626,2]
[379873913,1755429041371,-480.0,0.00019626,2]
[379873915,1755429041381,-480.0,0.00019626,2]
[379873917,1755429041390,-980.12,0.00019626,2]
[379873919,1755429041400,-480.0,0.00019626,2]
[379873921,1755429041410,-8423.9,0.00019626,2]
[379873923,1755429041420,-480.0,0.00019626,2]
[379873925,1755429041431,-480.0,0.00019626,2]
[379873927,1755429041441,-480.0,0.00019626,2]
[379873929,1755429041451,-500.0,0.00019626,2]
[379873931,1755429041460,-500.0,0.00019626,2]
[379873933,1755429041469,-480.0,0.00019626,2]
[379873935,1755429041478,-480.0,0.00019626,2]
[379873937,1755429041488,-500.0,0.00019626,2]
[379873939,1755429041497,-480.0,0.00019626,2]
[379873941,1755429041507,-480.0,0.00019626,2]
[379873943,1755429041516,-460.95789663,0.00019626,2]
[379873945,1755429041526,-480.0,0.00019626,2]
[379873947,1755429041540,-480.0,0.00019626,2]
[379873949,1755429041560,-480.0,0.00019626,2]
[379873951,1755429041582,-480.0,0.00019626,2]
[379873953,1755429041609,-500.0,0.00019626,2]
[379873955,1755429041640,-480.0,0.00019626,2]
[379873957,1755429041661,-562.73,0.00019626,2]
[379873959,1755429041684,-969.23,0.00019626,2]
[379873961,1755429041709,-500.0,0.00019626,2]
[379873971,1755429041877,-460.0,0.00019626,2]
[379873973,1755429041887,-480.0,0.00019626,2]
[379873975,1755429041896,-480.0,0.00019626,2]
[379873977,1755429041905,-480.0,0.00019626,2]
[379873979,1755429041914,-480.0,0.00019626,2]
[379873981,1755429041924,-480.0,0.00019626,2]
[379873983,1755429041933,-480.0,0.00019626,2]
[379873985,1755429041942,-480.0,0.00019626,2]
[379873987,1755429041952,-480.0,0.00019626,2]
[379873989,1755429041962,-480.0,0.00019626,2]
[379873991,1755429041971,-480.0,0.00019626,2]
[379873993,1755429041981,-480.0,0.00019626,2]
[379873995,1755429041990,-480.0,0.00019626,2]
[379873997,1755429042000,-5358.35,0.00019626,2]
[379873999,1755429042009,-480.0,0.00019626,2]
[379874001,1755429042019,-480.0,0.00019626,2]
[379874003,1755429042028,-480.0,0.00019626,2]
[379874005,1755429042037,-1000.0,0.00019626,2]
[379874007,1755429042047,-1000.0,0.00019626,2]
[379874009,1755429042056,-1000.0,0.00019626,2]
[379874011,1755429042066,-513.81797671,0.00019626,2]
[379874013,1755429042076,-1727.23,0.00019628,3]
[379874015,1755429042085,-500.0,0.00019633,2]
[379874017,1755429042094,-500.0,0.00019633,2]
[379874019,1755429042103,-500.0,0.00019633,2]
[379874021,1755429042113,-500.0,0.00019633,2]
[379874023,1755429042122,-500.0,0.00019634,2]
[379874025,1755429042131,-500.0,0.00019634,2]
[379874027,1755429042140,-500.0,0.00019634,2]
[379874029,1755429042149,-500.0,0.00019634,2]
[379874031,1755429042158,-500.0,0.00019634,2]
[379874033,1755429042167,-562.73,0.00019634,2]
[379874035,1755429042176,-562.73,0.00019634,2]
[379874037,1755429042186,-500.0,0.00019634,2]
[379874039,1755429042195,-500.0,0.00019634,2]
[379874041,1755429042204,-474.73876857,0.00019635,2]
[379874043,1755429042213,-460.0,0.00019635,2]
[379874045,1755429042224,-328.55990969,0.00019635,2]
[379874047,1755429042234,-301.69932036,0.00019635,2]
[379874049,1755429042244,-480.0,0.00019635,2]
[379874051,1755429042253,-480.0,0.00019635,2]
[379874053,1755429042262,-480.0,0.00019635,2]
[379874055,1755429042271,-480.0,0.00019635,2]
[379874057,1755429042282,-480.0,0.00019635,2]
[379874059,1755429042292,-480.0,0.00019635,2]
[379874061,1755429042302,-480.0,0.00019635,2]
[379874063,1755429042311,-480.0,0.00019635,2]
[379874065,1755429042322,-480.0,0.00019635,2]
[379874067,1755429042331,-480.0,0.00019635,2]
[379874069,1755429042341,-480.0,0.00019635,2]
[379874071,1755429042351,-480.0,0.00019635,2]
[379874073,1755429042361,-480.0,0.00019635,2]
[379874076,1755429042371,-480.0,0.00019635,2]
[379874079,1755429042381,-480.0,0.00019635,2]
[379874082,1755429042391,-480.0,0.00019635,2]
[379874084,1755429042400,-480.0,0.00019635,2]
[379874086,1755429042409,-480.0,0.00019635,2]
[379874088,1755429042418,-1041.47,0.00019635,2]
[379874090,1755429042427,-480.0,0.00019635,2]
[379874091,1755429042437,-480.0,0.00019635,2]
[379874094,1755429042447,-480.0,0.00019635,2]
[379874095,1755429042456,-480.0,0.00019635,2]
[379874097,1755429042465,-483.48843185,0.00019635,2]
[379874099,1755429042475,-480.0,0.00019635,2]
[379874101,1755429042484,-480.0,0.00019635,2]
[379874102,1755429042493,-480.0,0.00019635,2]
[379874103,1755429042502,-480.0,0.00019635,2]
[379874104,1755429042510,-480.0,0.00019635,2]
[379874106,1755429042519,-460.0,0.00019635,2]
[379874108,1755429042528,-480.0,0.00019635,2]
[379874109,1755429042538,-480.0,0.00019635,2]
[379874110,1755429042547,-480.0,0.00019635,2]
[379874111,1755429042556,-480.0,0.00019635,2]
[379874112,1755429042565,-480.0,0.00019635,2]
[379874113,1755429042574,-480.0,0.00019635,2]
[379874114,1755429042583,-638.14,0.00019635,2]
[379874116,1755429042593,-612.74,0.00019635,2]
[379874118,1755429042603,-480.0,0.00019635,2]
[379874120,1755429042614,-480.0,0.00019635,2]
[379874121,1755429042623,-480.0,0.00019635,2]
[379874123,1755429042632,-555.79,0.00019635,2]
[379874124,1755429042641,-480.0,0.00019635,2]
[379874125,1755429042653,-480.0,0.00019635,2]
[379874126,1755429042662,-480.0,0.00019635,2]
[379874127,1755429042671,-460.7105865,0.00019635,2]
[379874128,1755429042680,-480.0,0.00019635,2]
[379874129,1755429042691,-1772.34,0.00019635,2]
[379874130,1755429042700,-500.0,0.00019636,2]
[379874131,1755429042710,-562.73,0.00019636,2]
[379874132,1755429042719,-500.0,0.00019637,2]
[379874133,1755429042728,-500.0,0.00019637,2]
[379874134,1755429042738,-621.6277482,0.00019637,2]
[379874135,1755429042746,-1000.0,0.00019637,2]
[379874136,1755429042756,-1000.0,0.00019637,2]
[379874138,1755429042765,-500.0,0.00019637,2]
[379874139,1755429042775,-500.0,0.00019637,2]
[379874140,1755429042784,-500.0,0.00019637,2]
[379874141,1755429042792,-500.0,0.00019637,2]
[379874143,1755429042802,-500.0,0.00019637,2]
[379874145,1755429042812,-500.0,0.00019637,2]
[379874148,1755429042822,-570.81,0.00019637,2]
[379874150,1755429042831,-481.80274514,0.00019637,2]
[379874152,1755429042842,-562.73,0.00019637,2]